[Event "Early-Titled-Tuesday-Blitz-January-23-2024"]
[Site "Chess.com"]
[Date "2024.01.23"]
[Round "6"]
[White "sergoy"]
[Black "rezamahdavi2008"]
[Result "1-0"]
[WhiteElo "3027"]
[BlackElo "2852"]
[TimeControl "180+1"]
[EndTime "9:07:48 PST"]
[Termination "sergoy won on time"]

1. d4 {[%clk 0:03:00.9]} 1... Nf6 {[%clk 0:02:59.8]} 2. c4 {[%clk 0:03:01.6]}
2... e6 {[%clk 0:03:00.5]} 3. Nf3 {[%clk 0:03:02.4]} 3... d5 {[%clk 0:02:58.2]}
4. Nc3 {[%clk 0:03:02.7]} 4... c6 {[%clk 0:02:57.6]} 5. e3 {[%clk 0:03:02.4]}
5... Nbd7 {[%clk 0:02:57]} 6. Qc2 {[%clk 0:03:03]} 6... Bd6 {[%clk 0:02:57.4]}
7. Bd3 {[%clk 0:03:03.3]} 7... dxc4 {[%clk 0:02:55.2]} 8. Bxc4 {[%clk
0:03:03.7]} 8... b5 {[%clk 0:02:47.2]} 9. Be2 {[%clk 0:03:03.8]} 9... Bb7 {[%clk
0:02:41.9]} 10. e4 {[%clk 0:03:04.1]} 10... e5 {[%clk 0:02:36.5]} 11. dxe5
{[%clk 0:03:04.7]} 11... Nxe5 {[%clk 0:02:37.4]} 12. Nd4 {[%clk 0:03:05.4]}
12... O-O {[%clk 0:02:36.4]} 13. Nf5 {[%clk 0:03:05.8]} 13... Ng6 {[%clk
0:02:15.5]} 14. O-O {[%clk 0:03:04.2]} 14... Be5 {[%clk 0:02:04.2]} 15. f4
{[%clk 0:02:48.3]} 15... Bxc3 {[%clk 0:02:01.4]} 16. bxc3 {[%clk 0:02:43.9]}
16... c5 {[%clk 0:01:58.2]} 17. Bf3 {[%clk 0:02:44.3]} 17... Re8 {[%clk
0:01:48]} 18. e5 {[%clk 0:02:43.8]} 18... Bxf3 {[%clk 0:01:48.9]} 19. Rxf3
{[%clk 0:02:44]} 19... Nd5 {[%clk 0:01:43.6]} 20. Nd6 {[%clk 0:02:41.4]} 20...
Rf8 {[%clk 0:01:36.5]} 21. Bd2 {[%clk 0:02:34.8]} 21... Qb6 {[%clk 0:01:33.5]}
22. c4 {[%clk 0:02:29.3]} 22... bxc4 {[%clk 0:01:32.5]} 23. Qxc4 {[%clk
0:02:22.5]} 23... Nde7 {[%clk 0:01:28.4]} 24. Bc3 {[%clk 0:02:18.8]} 24... Nc6
{[%clk 0:01:25.8]} 25. Re1 {[%clk 0:02:14.7]} 25... Rad8 {[%clk 0:01:14.6]} 26.
Rg3 {[%clk 0:02:06.2]} 26... Nd4 {[%clk 0:01:11.8]} 27. Bxd4 {[%clk 0:01:26.8]}
27... cxd4 {[%clk 0:01:12.7]} 28. Rb3 {[%clk 0:01:27]} 28... Qa5 {[%clk
0:01:08.4]} 29. Rf1 {[%clk 0:01:21.7]} 29... Rd7 {[%clk 0:00:48.3]} 30. Qxd4
{[%clk 0:01:17.7]} 30... Qxa2 {[%clk 0:00:46.9]} 31. Rg3 {[%clk 0:01:14.3]}
31... Qe6 {[%clk 0:00:45]} 32. Qf2 {[%clk 0:00:54.2]} 32... f6 {[%clk
0:00:35.1]} 33. f5 {[%clk 0:00:53.5]} 33... Qxe5 {[%clk 0:00:35.1]} 34. Nc4
{[%clk 0:00:46.9]} 34... Qd4 {[%clk 0:00:25.2]} 35. fxg6 {[%clk 0:00:45.1]}
35... Qxc4 {[%clk 0:00:24.6]} 36. gxh7+ {[%clk 0:00:46]} 36... Kh8 {[%clk
0:00:24.6]} 37. Kh1 {[%clk 0:00:44.7]} 37... a5 {[%clk 0:00:22.9]} 38. Re3
{[%clk 0:00:41.6]} 38... a4 {[%clk 0:00:22.5]} 39. Rfe1 {[%clk 0:00:41.9]} 39...
Qc5 {[%clk 0:00:17.5]} 40. Qg3 {[%clk 0:00:41.3]} 40... Ra7 {[%clk 0:00:15.8]}
41. Qg6 {[%clk 0:00:31.5]} 41... Qg5 {[%clk 0:00:08.4]} 42. Qd3 {[%clk
0:00:27.7]} 42... Raa8 {[%clk 0:00:05.4]} 43. Rg3 {[%clk 0:00:25.8]} 43... Qc5
{[%clk 0:00:03.6]} 44. Qd7 {[%clk 0:00:24.9]} 44... Ra7 {[%clk 0:00:03.5]} 45.
Qe6 {[%clk 0:00:13.4]} 45... a3 {[%clk 0:00:03.9]} 46. Qa2 {[%clk 0:00:13.1]}
46... Re7 {[%clk 0:00:02.5]} 47. Rf1 {[%clk 0:00:11.5]} 47... Ra7 {[%clk
0:00:02.8]} 48. h3 {[%clk 0:00:09.6]} 48... Qd6 {[%clk 0:00:02.5]} 49. Rgf3
{[%clk 0:00:09.4]} 49... Qb4 {[%clk 0:00:03.1]} 50. Rd1 {[%clk 0:00:09.1]} 50...
Qb2 {[%clk 0:00:03.5]} 51. Qxb2 {[%clk 0:00:07.3]} 51... axb2 {[%clk 0:00:04.4]}
52. Rb3 {[%clk 0:00:07.6]} 52... Ra1 {[%clk 0:00:04.4]} 53. Rg1 {[%clk
0:00:08.1]} 53... Rxg1+ {[%clk 0:00:02]} 54. Kxg1 {[%clk 0:00:09]} 54... Kxh7
{[%clk 0:00:02.9]} 55. Rxb2 {[%clk 0:00:09.7]} 55... Rf7 {[%clk 0:00:03.8]} 56.
Kh2 {[%clk 0:00:10.6]} 56... Re7 {[%clk 0:00:04]} 57. Rb5 {[%clk 0:00:09.6]}
57... g6 {[%clk 0:00:04.2]} 58. Kg3 {[%clk 0:00:09.1]} 58... Kg7 {[%clk
0:00:04.9]} 59. Rb6 {[%clk 0:00:09.5]} 59... Re3+ {[%clk 0:00:05.1]} 60. Kf4
{[%clk 0:00:09.6]} 60... Re7 {[%clk 0:00:06]} 61. Rd6 {[%clk 0:00:09.7]} 61...
Ra7 {[%clk 0:00:06.6]} 62. Kf3 {[%clk 0:00:09.6]} 62... Ra3+ {[%clk 0:00:07.1]}
63. Kf2 {[%clk 0:00:09.4]} 63... Ra2+ {[%clk 0:00:07.7]} 64. Kg3 {[%clk
0:00:10]} 64... Ra3+ {[%clk 0:00:08]} 65. Kh2 {[%clk 0:00:10.5]} 65... Ra7
{[%clk 0:00:06.7]} 66. h4 {[%clk 0:00:10.4]} 66... Rb7 {[%clk 0:00:06.2]} 67.
Kh3 {[%clk 0:00:10.9]} 67... Ra7 {[%clk 0:00:06.8]} 68. g3 {[%clk 0:00:10.8]}
68... Ra6 {[%clk 0:00:07.3]} 69. Rxa6 {[%clk 0:00:10.8]} 1-0

[Event "Early-Titled-Tuesday-Blitz-January-23-2024"]
[Site "Chess.com"]
[Date "2024.01.23"]
[Round "6"]
[White "shimastream"]
[Black "GMSrinath"]
[Result "1-0"]
[WhiteElo "3024"]
[BlackElo "2830"]
[TimeControl "180+1"]
[EndTime "9:07:49 PST"]
[Termination "shimastream won on time"]

1. d4 {[%clk 0:03:00.9]} 1... Nf6 {[%clk 0:02:56.8]} 2. Bg5 {[%clk 0:03:00.5]}
2... d5 {[%clk 0:02:54.9]} 3. Nd2 {[%clk 0:03:00.2]} 3... c5 {[%clk 0:02:53.8]}
4. dxc5 {[%clk 0:03:01.1]} 4... e6 {[%clk 0:02:52]} 5. e4 {[%clk 0:03:01]} 5...
h6 {[%clk 0:02:35.1]} 6. Bh4 {[%clk 0:03:00.2]} 6... Bxc5 {[%clk 0:02:28.3]} 7.
e5 {[%clk 0:02:59.4]} 7... g5 {[%clk 0:02:28]} 8. Bg3 {[%clk 0:02:59.8]} 8...
Nfd7 {[%clk 0:02:27.2]} 9. h4 {[%clk 0:03:00.4]} 9... Rg8 {[%clk 0:02:25.8]} 10.
hxg5 {[%clk 0:03:00.1]} 10... hxg5 {[%clk 0:02:23.8]} 11. Nb3 {[%clk 0:02:56.7]}
11... Nc6 {[%clk 0:02:22.1]} 12. Rh7 {[%clk 0:02:30.9]} 12... Ncxe5 {[%clk
0:02:05.6]} 13. Nf3 {[%clk 0:02:19.9]} 13... Ng6 {[%clk 0:01:28.4]} 14. Qd2
{[%clk 0:02:00.4]} 14... Be7 {[%clk 0:01:26.5]} 15. Nfd4 {[%clk 0:01:26.8]}
15... Nf6 {[%clk 0:01:22.1]} 16. Rh1 {[%clk 0:01:19.9]} 16... Ne4 {[%clk
0:01:21.6]} 17. Qe3 {[%clk 0:01:20.2]} 17... Nxg3 {[%clk 0:00:58]} 18. Qxg3
{[%clk 0:01:21.1]} 18... Bd6 {[%clk 0:00:56.6]} 19. Qe3 {[%clk 0:01:18.6]} 19...
Bd7 {[%clk 0:00:54.6]} 20. g3 {[%clk 0:01:15]} 20... Qb6 {[%clk 0:00:50.1]} 21.
Qxg5 {[%clk 0:01:08.6]} 21... Be7 {[%clk 0:00:45]} 22. Qe3 {[%clk 0:01:05.5]}
22... O-O-O {[%clk 0:00:44.9]} 23. c3 {[%clk 0:01:01.9]} 23... Kb8 {[%clk
0:00:40.1]} 24. Rh7 {[%clk 0:00:59.1]} 24... Be8 {[%clk 0:00:27.4]} 25. Bd3
{[%clk 0:00:57.9]} 25... Nf8 {[%clk 0:00:23]} 26. Rh1 {[%clk 0:00:53.4]} 26...
Nd7 {[%clk 0:00:23.3]} 27. O-O-O {[%clk 0:00:51.5]} 27... Nc5 {[%clk 0:00:23.6]}
28. Bc2 {[%clk 0:00:50.2]} 28... Nxb3+ {[%clk 0:00:22.5]} 29. axb3 {[%clk
0:00:50.1]} 29... Bd6 {[%clk 0:00:21.7]} 30. Kb1 {[%clk 0:00:49.5]} 30... a5
{[%clk 0:00:20.5]} 31. Rh7 {[%clk 0:00:47.8]} 31... Rc8 {[%clk 0:00:16.3]} 32.
Re1 {[%clk 0:00:39.8]} 32... Ka8 {[%clk 0:00:16.1]} 33. Qd2 {[%clk 0:00:28.1]}
33... Bc5 {[%clk 0:00:15.9]} 34. Rd1 {[%clk 0:00:27.9]} 34... Rc7 {[%clk
0:00:14.2]} 35. Qf4 {[%clk 0:00:21.8]} 35... Bd6 {[%clk 0:00:11.8]} 36. Qf6
{[%clk 0:00:21.3]} 36... a4 {[%clk 0:00:10.8]} 37. bxa4 {[%clk 0:00:16.1]} 37...
Rxc3 {[%clk 0:00:08.9]} 38. Nb5 {[%clk 0:00:15.7]} 38... Rc8 {[%clk 0:00:05.6]}
39. Bd3 {[%clk 0:00:11.1]} 39... Bc5 {[%clk 0:00:04.9]} 40. Rh2 {[%clk
0:00:08.2]} 40... Bxb5 {[%clk 0:00:03.7]} 41. Bxb5 {[%clk 0:00:08.1]} 41... Rg6
{[%clk 0:00:02.8]} 42. Qe5 {[%clk 0:00:08.3]} 42... Rg4 {[%clk 0:00:02.6]} 43.
Qe1 {[%clk 0:00:03.7]} 43... Rb4 {[%clk 0:00:03]} 44. f4 {[%clk 0:00:04.1]}
44... Ka7 {[%clk 0:00:03.5]} 45. Re2 {[%clk 0:00:04]} 45... Rc7 {[%clk
0:00:03.6]} 46. Qd2 {[%clk 0:00:03.7]} 46... Rd4 {[%clk 0:00:03.5]} 47. Qe1
{[%clk 0:00:03.7]} 47... Rxd1+ {[%clk 0:00:04.4]} 48. Qxd1 {[%clk 0:00:04.6]}
48... Bd6 {[%clk 0:00:05]} 49. Qd3 {[%clk 0:00:04.2]} 49... Rc5 {[%clk
0:00:04.9]} 50. Ka2 {[%clk 0:00:04.5]} 50... Qc7 {[%clk 0:00:03.6]} 51. f5
{[%clk 0:00:04]} 51... e5 {[%clk 0:00:03]} 52. g4 {[%clk 0:00:03.9]} 52... d4
{[%clk 0:00:02.8]} 53. g5 {[%clk 0:00:03.7]} 53... Rc1 {[%clk 0:00:03.1]} 54. g6
{[%clk 0:00:04]} 54... fxg6 {[%clk 0:00:04]} 55. fxg6 {[%clk 0:00:04.9]} 55...
Qc5 {[%clk 0:00:04.2]} 56. Qb3 {[%clk 0:00:05]} 56... Bf8 {[%clk 0:00:02.9]} 57.
Rf2 {[%clk 0:00:04.5]} 57... Bh6 {[%clk 0:00:02.1]} 58. Rf7 {[%clk 0:00:04.6]}
58... Qb6 {[%clk 0:00:02.3]} 59. g7 {[%clk 0:00:04.6]} 59... Rg1 {[%clk
0:00:03.2]} 60. a5 {[%clk 0:00:02.2]} 60... Qxa5+ {[%clk 0:00:03.1]} 61. Ba4
{[%clk 0:00:02.9]} 61... Qb6 {[%clk 0:00:01.1]} 62. Qxb6+ {[%clk 0:00:03.2]}
62... Kxb6 {[%clk 0:00:00.6]} 63. Rf6+ {[%clk 0:00:04.1]} 1-0

[Event "Early-Titled-Tuesday-Blitz-January-23-2024"]
[Site "Chess.com"]
[Date "2024.01.23"]
[Round "6"]
[White "flomarechot"]
[Black "Felix-Rose"]
[Result "0-1"]
[WhiteElo "2268"]
[BlackElo "2299"]
[TimeControl "180+1"]
[EndTime "9:07:56 PST"]
[Termination "Felix-Rose won by resignation"]

1. Nf3 {[%clk 0:03:00.9]} 1... g6 {[%clk 0:02:58.3]} 2. d4 {[%clk 0:02:59.8]}
2... d6 {[%clk 0:02:57]} 3. b3 {[%clk 0:02:59.8]} 3... Bg7 {[%clk 0:02:56.7]} 4.
Bb2 {[%clk 0:03:00.4]} 4... a5 {[%clk 0:02:56]} 5. a3 {[%clk 0:02:56.3]} 5... c5
{[%clk 0:02:54.2]} 6. e3 {[%clk 0:02:54.3]} 6... Nc6 {[%clk 0:02:53.7]} 7. Bb5
{[%clk 0:02:53.2]} 7... Bd7 {[%clk 0:02:53]} 8. O-O {[%clk 0:02:45.4]} 8... cxd4
{[%clk 0:02:47.5]} 9. Nxd4 {[%clk 0:02:41.5]} 9... Nf6 {[%clk 0:02:41.7]} 10.
Be2 {[%clk 0:02:33.9]} 10... O-O {[%clk 0:02:40.6]} 11. c4 {[%clk 0:02:33.8]}
11... Ne5 {[%clk 0:02:37.3]} 12. Nc3 {[%clk 0:02:30.3]} 12... Qc8 {[%clk
0:02:32.8]} 13. Rc1 {[%clk 0:02:23]} 13... b6 {[%clk 0:02:20.6]} 14. Nf3 {[%clk
0:02:07.9]} 14... Nc6 {[%clk 0:02:07.8]} 15. Qd2 {[%clk 0:02:03.6]} 15... Ne8
{[%clk 0:02:02.4]} 16. Rfd1 {[%clk 0:01:49]} 16... Qb7 {[%clk 0:01:58.9]} 17.
Nb5 {[%clk 0:01:44.6]} 17... Bxb2 {[%clk 0:01:50.7]} 18. Qxb2 {[%clk 0:01:45.5]}
18... a4 {[%clk 0:01:47.9]} 19. b4 {[%clk 0:01:41]} 19... Nd8 {[%clk 0:01:41.3]}
20. Nfd4 {[%clk 0:01:35.8]} 20... Ng7 {[%clk 0:01:32]} 21. Bf3 {[%clk
0:01:33.2]} 21... Nc6 {[%clk 0:01:21.4]} 22. h3 {[%clk 0:01:13.6]} 22... Rac8
{[%clk 0:01:20.5]} 23. Qc2 {[%clk 0:01:09.9]} 23... Nxd4 {[%clk 0:01:17.3]} 24.
Bxb7 {[%clk 0:00:49.4]} 24... Nxc2 {[%clk 0:01:16.3]} 25. Bxc8 {[%clk
0:00:49.1]} 25... Rxc8 {[%clk 0:01:03.9]} 26. Na7 {[%clk 0:00:21.4]} 26... Rc7
{[%clk 0:00:59.9]} 27. Rxc2 {[%clk 0:00:21.8]} 27... Rxa7 {[%clk 0:00:59.8]} 28.
c5 {[%clk 0:00:22.3]} 28... bxc5 {[%clk 0:00:58.3]} 29. bxc5 {[%clk 0:00:22.2]}
29... dxc5 {[%clk 0:00:55.7]} 30. Rxc5 {[%clk 0:00:21.3]} 30... Ne6 {[%clk
0:00:53.4]} 31. Rcd5 {[%clk 0:00:20.5]} 31... Bc6 {[%clk 0:00:51.6]} 32. R5d3
{[%clk 0:00:16.4]} 32... Kg7 {[%clk 0:00:49.1]} 33. Rc3 {[%clk 0:00:16.3]} 33...
Ra6 {[%clk 0:00:38.1]} 34. f3 {[%clk 0:00:13.3]} 34... h5 {[%clk 0:00:30.9]} 35.
Kf2 {[%clk 0:00:13.1]} 35... Rb6 {[%clk 0:00:27.6]} 36. Rd2 {[%clk 0:00:12.1]}
36... Be8 {[%clk 0:00:19.1]} 37. g4 {[%clk 0:00:12.3]} 37... hxg4 {[%clk
0:00:18.7]} 38. hxg4 {[%clk 0:00:13.2]} 38... Ng5 {[%clk 0:00:17.1]} 39. Rc4
{[%clk 0:00:11.1]} 39... Rb3 {[%clk 0:00:14.7]} 40. Rc7 {[%clk 0:00:10.5]} 40...
Rxa3 {[%clk 0:00:13.2]} 41. Rxe7 {[%clk 0:00:10.7]} 41... Bc6 {[%clk 0:00:11.5]}
42. e4 {[%clk 0:00:10.5]} 42... Rxf3+ {[%clk 0:00:11.7]} 43. Kg2 {[%clk
0:00:10.3]} 43... Bxe4 {[%clk 0:00:11.3]} 44. Kh2 {[%clk 0:00:10.1]} 44... Rh3+
{[%clk 0:00:10.3]} 45. Kg1 {[%clk 0:00:09.8]} 45... Nf3+ {[%clk 0:00:10.6]} 46.
Kf2 {[%clk 0:00:09.2]} 46... Nxd2 {[%clk 0:00:09.2]} 47. Ke1 {[%clk 0:00:09.8]}
47... Nf3+ {[%clk 0:00:09.3]} 48. Kf2 {[%clk 0:00:10]} 48... Bd5 {[%clk
0:00:07]} 49. Rd7 {[%clk 0:00:10.1]} 49... Be6 {[%clk 0:00:07.1]} 50. Ra7 {[%clk
0:00:10.3]} 50... Ne5 {[%clk 0:00:07.3]} 51. Rxa4 {[%clk 0:00:09.7]} 51... Nxg4+
{[%clk 0:00:07.8]} 52. Kg2 {[%clk 0:00:10.3]} 52... Rh2+ {[%clk 0:00:07.7]} 53.
Kg3 {[%clk 0:00:10]} 53... Rb2 {[%clk 0:00:07.6]} 54. Rd4 {[%clk 0:00:09.6]}
54... Rb3+ {[%clk 0:00:07.8]} 55. Kf4 {[%clk 0:00:09.4]} 55... Nf6 {[%clk
0:00:06.8]} 56. Ra4 {[%clk 0:00:09.2]} 56... Nd5+ {[%clk 0:00:07]} 57. Ke4
{[%clk 0:00:08.4]} 57... Re3+ {[%clk 0:00:07]} 58. Kd4 {[%clk 0:00:08.6]} 58...
Rh3 {[%clk 0:00:07.1]} 59. Ra8 {[%clk 0:00:08.8]} 59... Rh4+ {[%clk 0:00:06.8]}
60. Kd3 {[%clk 0:00:08.6]} 60... Nb4+ {[%clk 0:00:05.6]} 61. Ke3 {[%clk
0:00:08.6]} 61... Bd5 {[%clk 0:00:05.8]} 62. Rb8 {[%clk 0:00:08.4]} 62... Nc2+
{[%clk 0:00:05.7]} 63. Kd3 {[%clk 0:00:07.8]} 63... Be4+ {[%clk 0:00:05.3]} 64.
Kc3 {[%clk 0:00:07.1]} 64... Rh3+ {[%clk 0:00:05.8]} 65. Kd2 {[%clk 0:00:06.2]}
65... Nd4 {[%clk 0:00:06.3]} 66. Rd8 {[%clk 0:00:05.4]} 66... Rd3+ {[%clk
0:00:06.2]} 67. Kc1 {[%clk 0:00:04.7]} 67... Ne2+ {[%clk 0:00:06.4]} 68. Kc2
{[%clk 0:00:04.1]} 68... Rxd8+ {[%clk 0:00:06.7]} 0-1

[Event "Early-Titled-Tuesday-Blitz-January-23-2024"]
[Site "Chess.com"]
[Date "2024.01.23"]
[Round "6"]
[White "Flawless_Fighter"]
[Black "Chessdreamer2020"]
[Result "1-0"]
[WhiteElo "2723"]
[BlackElo "2544"]
[TimeControl "180+1"]
[EndTime "9:07:57 PST"]
[Termination "Flawless_Fighter won by resignation"]

1. e4 {[%clk 0:02:58.1]} 1... d6 {[%clk 0:03:00.4]} 2. d4 {[%clk 0:02:56.9]}
2... Nf6 {[%clk 0:03:01]} 3. Nc3 {[%clk 0:02:56.1]} 3... c6 {[%clk 0:03:01.5]}
4. Nf3 {[%clk 0:02:55.3]} 4... Bg4 {[%clk 0:03:00.9]} 5. Be2 {[%clk 0:02:54.9]}
5... e6 {[%clk 0:03:00.9]} 6. O-O {[%clk 0:02:54]} 6... d5 {[%clk 0:03:01.1]} 7.
e5 {[%clk 0:02:52.9]} 7... Nfd7 {[%clk 0:03:01.5]} 8. Bg5 {[%clk 0:02:43.8]}
8... Qa5 {[%clk 0:02:47.5]} 9. a3 {[%clk 0:02:38.1]} 9... c5 {[%clk 0:02:44]}
10. b4 {[%clk 0:02:26.6]} 10... cxb4 {[%clk 0:02:36.4]} 11. axb4 {[%clk
0:02:27.5]} 11... Qb6 {[%clk 0:02:23]} 12. Na4 {[%clk 0:02:20.5]} 12... Qc7
{[%clk 0:02:20]} 13. Nc5 {[%clk 0:02:15]} 13... b6 {[%clk 0:02:12.8]} 14. c4
{[%clk 0:01:59.4]} 14... bxc5 {[%clk 0:02:08]} 15. bxc5 {[%clk 0:01:57.2]} 15...
dxc4 {[%clk 0:02:03.2]} 16. h3 {[%clk 0:01:53]} 16... Bh5 {[%clk 0:02:00.8]} 17.
g4 {[%clk 0:01:20]} 17... Bg6 {[%clk 0:02:00.5]} 18. Bxc4 {[%clk 0:01:16.8]}
18... h6 {[%clk 0:02:00.5]} 19. Bf4 {[%clk 0:01:13.2]} 19... Be4 {[%clk
0:01:54]} 20. Qe2 {[%clk 0:00:47.9]} 20... Qb7 {[%clk 0:01:26.3]} 21. Nd2 {[%clk
0:00:45.2]} 21... Bg6 {[%clk 0:00:55.5]} 22. Ra3 {[%clk 0:00:29.5]} 22... Be7
{[%clk 0:00:41.4]} 23. Rb3 {[%clk 0:00:29.6]} 23... Qc8 {[%clk 0:00:37.3]} 24.
Qf3 {[%clk 0:00:29.3]} 24... Nc6 {[%clk 0:00:33.4]} 25. Bb5 {[%clk 0:00:19.3]}
25... Ndb8 {[%clk 0:00:33.2]} 26. Nc4 {[%clk 0:00:08.8]} 26... O-O {[%clk
0:00:32.7]} 27. Be3 {[%clk 0:00:09]} 27... a6 {[%clk 0:00:32.4]} 28. Nb6 {[%clk
0:00:08.7]} 28... Qb7 {[%clk 0:00:29.6]} 29. Ba4 {[%clk 0:00:08.3]} 29... Ra7
{[%clk 0:00:26.9]} 30. h4 {[%clk 0:00:06.9]} 30... Qc7 {[%clk 0:00:25]} 31. h5
{[%clk 0:00:07.1]} 31... Bh7 {[%clk 0:00:25.1]} 32. Qg3 {[%clk 0:00:06.9]} 32...
Rd8 {[%clk 0:00:24.3]} 33. Rd1 {[%clk 0:00:06.8]} 33... Na5 {[%clk 0:00:17.9]}
34. Rb2 {[%clk 0:00:05.7]} 34... Nbc6 {[%clk 0:00:17.7]} 35. g5 {[%clk
0:00:05.5]} 35... hxg5 {[%clk 0:00:17.3]} 36. Rbd2 {[%clk 0:00:04.8]} 36... Nc4
{[%clk 0:00:16.3]} 37. Nxc4 {[%clk 0:00:04.5]} 37... Nb4 {[%clk 0:00:15.6]} 38.
Nd6 {[%clk 0:00:04.2]} 38... Bxd6 {[%clk 0:00:15.6]} 39. exd6 {[%clk 0:00:03.6]}
39... Qb7 {[%clk 0:00:16.5]} 40. Bxg5 {[%clk 0:00:03.8]} 40... Rb8 {[%clk
0:00:16.3]} 41. h6 {[%clk 0:00:04.2]} 41... g6 {[%clk 0:00:16.1]} 42. Bf6 {[%clk
0:00:04.2]} 42... Nd5 {[%clk 0:00:16.7]} 43. Be5 {[%clk 0:00:03.4]} 43... f6
{[%clk 0:00:16]} 44. Bf4 {[%clk 0:00:02.7]} 44... Rd8 {[%clk 0:00:16.2]} 45. Be3
{[%clk 0:00:03.1]} 45... Qf7 {[%clk 0:00:16.6]} 46. Rd3 {[%clk 0:00:03.6]} 46...
Rb7 {[%clk 0:00:16.9]} 47. Bb3 {[%clk 0:00:04]} 47... g5 {[%clk 0:00:14.7]} 48.
Bxd5 {[%clk 0:00:04.7]} 48... exd5 {[%clk 0:00:15.5]} 49. Ra3 {[%clk 0:00:05.1]}
49... Rb2 {[%clk 0:00:07.6]} 50. c6 {[%clk 0:00:04.9]} 50... Rdb8 {[%clk
0:00:06.8]} 51. c7 {[%clk 0:00:05]} 51... Ra8 {[%clk 0:00:06.8]} 52. Rc1 {[%clk
0:00:05.3]} 52... Qd7 {[%clk 0:00:06.7]} 53. Rac3 {[%clk 0:00:05.8]} 53... Bf5
{[%clk 0:00:05.5]} 54. c8=Q+ {[%clk 0:00:05.1]} 54... Rxc8 {[%clk 0:00:06.4]}
55. Rxc8+ {[%clk 0:00:05.8]} 55... Qxc8 {[%clk 0:00:07.3]} 56. Rxc8+ {[%clk
0:00:06.3]} 56... Bxc8 {[%clk 0:00:07.3]} 57. Qf3 {[%clk 0:00:06.3]} 57... Kf7
{[%clk 0:00:07.2]} 58. Qxd5+ {[%clk 0:00:06.7]} 58... Be6 {[%clk 0:00:07]} 59.
Qc5 {[%clk 0:00:07]} 59... Rb1+ {[%clk 0:00:06.9]} 60. Kh2 {[%clk 0:00:07.4]}
60... Kg6 {[%clk 0:00:07.4]} 61. Qc7 {[%clk 0:00:07.6]} 61... Bd5 {[%clk
0:00:07.4]} 62. Qg7+ {[%clk 0:00:06.6]} 62... Kh5 {[%clk 0:00:07.6]} 63. f3
{[%clk 0:00:05.8]} 63... Bxf3 {[%clk 0:00:07.1]} 64. Kg3 {[%clk 0:00:06.3]}
64... g4 {[%clk 0:00:05.6]} 65. h7 {[%clk 0:00:06.6]} 65... Rb8 {[%clk
0:00:03.7]} 66. h8=Q+ {[%clk 0:00:06.6]} 66... Rxh8 {[%clk 0:00:04.6]} 67. Qxh8+
{[%clk 0:00:07.5]} 67... Kg6 {[%clk 0:00:05.1]} 68. Qg8+ {[%clk 0:00:07.8]}
68... Kf5 {[%clk 0:00:06]} 69. d7 {[%clk 0:00:08.1]} 1-0